[Event "*** SCC Grand Prix: Titled Tuesday Blitz"]
[Site "Chess.com"]
[Date "2020.08.25"]
[Round "2"]
[White "Paladin61"]
[Black "Sophist4Life"]
[Result "1-0"]
[WhiteElo "2675"]
[BlackElo "2432"]
[TimeControl "180+1"]
[EndTime "10:20:18 PDT"]
[Termination "Paladin61 won on time"]

1. b3 {[%clk 0:03:00.9]} 1... d5 {[%clk 0:02:59.8]} 2. Bb2 {[%clk 0:03:01]} 2...
c5 {[%clk 0:03:00]} 3. e3 {[%clk 0:03:00.9]} 3... a6 {[%clk 0:02:59.7]} 4. Nf3
{[%clk 0:02:58.6]} 4... Nc6 {[%clk 0:02:59.9]} 5. d4 {[%clk 0:02:57.8]} 5... Nf6
{[%clk 0:02:59.9]} 6. Be2 {[%clk 0:02:56.6]} 6... Bg4 {[%clk 0:02:59.9]} 7. Nbd2
{[%clk 0:02:47.3]} 7... e6 {[%clk 0:03:00]} 8. O-O {[%clk 0:02:44.4]} 8... Bd6
{[%clk 0:02:59.5]} 9. dxc5 {[%clk 0:02:43.3]} 9... Bxc5 {[%clk 0:02:59.2]} 10.
a3 {[%clk 0:02:42.8]} 10... O-O {[%clk 0:02:58.2]} 11. b4 {[%clk 0:02:42.8]}
11... Bd6 {[%clk 0:02:57.3]} 12. c4 {[%clk 0:02:42.8]} 12... Rc8 {[%clk
0:02:53.9]} 13. Qb3 {[%clk 0:02:31.4]} 13... Qe7 {[%clk 0:02:49.8]} 14. Rfd1
{[%clk 0:02:27.6]} 14... Rfd8 {[%clk 0:02:48.8]} 15. Rac1 {[%clk 0:02:22]} 15...
h6 {[%clk 0:02:47.1]} 16. h3 {[%clk 0:02:05.6]} 16... Bh5 {[%clk 0:02:46.5]} 17.
cxd5 {[%clk 0:02:04.3]} 17... Nxd5 {[%clk 0:02:45.4]} 18. Ne4 {[%clk 0:02:01]}
18... Bb8 {[%clk 0:02:41.4]} 19. Ba1 {[%clk 0:01:35.9]} 19... Qf8 {[%clk
0:02:22.1]} 20. Nc5 {[%clk 0:01:31.6]} 20... Qe7 {[%clk 0:02:17.6]} 21. Qb2
{[%clk 0:01:28.7]} 21... Nf6 {[%clk 0:02:09.1]} 22. Rxd8+ {[%clk 0:01:12.2]}
22... Rxd8 {[%clk 0:02:08.1]} 23. Nxa6 {[%clk 0:01:07.2]} 23... Bxf3 {[%clk
0:02:00.9]} 24. Nxb8 {[%clk 0:01:02.2]} 24... Bxg2 {[%clk 0:01:34.1]} 25. Kxg2
{[%clk 0:00:53.9]} 25... Rxb8 {[%clk 0:01:32.5]} 26. Bf3 {[%clk 0:00:53.2]}
26... Ne8 {[%clk 0:01:19.1]} 27. b5 {[%clk 0:00:48]} 27... Nd8 {[%clk
0:00:59.4]} 28. a4 {[%clk 0:00:42.9]} 28... f6 {[%clk 0:00:58]} 29. Kh1 {[%clk
0:00:41.6]} 29... Nf7 {[%clk 0:00:58.1]} 30. Bg2 {[%clk 0:00:39.8]} 30... Ng5
{[%clk 0:00:55.9]} 31. h4 {[%clk 0:00:34.4]} 31... Nh7 {[%clk 0:00:53.6]} 32. a5
{[%clk 0:00:34.1]} 32... Nf8 {[%clk 0:00:53.2]} 33. Qd4 {[%clk 0:00:32.3]} 33...
Qa3 {[%clk 0:00:50.2]} 34. Qc3 {[%clk 0:00:28.3]} 34... Qa4 {[%clk 0:00:46.3]}
35. b6 {[%clk 0:00:24.3]} 35... Qxh4+ {[%clk 0:00:45.8]} 36. Kg1 {[%clk
0:00:24.7]} 36... Ng6 {[%clk 0:00:44.8]} 37. Qc4 {[%clk 0:00:23.8]} 37... Qxc4
{[%clk 0:00:22.2]} 38. Rxc4 {[%clk 0:00:24.4]} 38... Nd6 {[%clk 0:00:18.4]} 39.
Rc7 {[%clk 0:00:23.9]} 39... Ne5 {[%clk 0:00:16.7]} 40. Bxe5 {[%clk 0:00:22.4]}
40... fxe5 {[%clk 0:00:17.1]} 41. Rd7 {[%clk 0:00:22.7]} 41... Nc4 {[%clk
0:00:16.2]} 42. a6 {[%clk 0:00:15.1]} 42... bxa6 {[%clk 0:00:14.4]} 43. b7
{[%clk 0:00:15.1]} 43... Kf8 {[%clk 0:00:13.4]} 44. Rc7 {[%clk 0:00:13.9]} 44...
Nd6 {[%clk 0:00:12.8]} 45. Bc6 {[%clk 0:00:10.6]} 45... a5 {[%clk 0:00:12]} 46.
Rd7 {[%clk 0:00:08.1]} 46... Nf5 {[%clk 0:00:09.6]} 47. Ba4 {[%clk 0:00:05.9]}
47... g5 {[%clk 0:00:07]} 48. e4 {[%clk 0:00:04.8]} 48... Ne7 {[%clk 0:00:04.3]}
49. Rc7 {[%clk 0:00:05.7]} 49... h5 {[%clk 0:00:04]} 50. Kg2 {[%clk 0:00:05.5]}
50... g4 {[%clk 0:00:02.8]} 51. Kg3 {[%clk 0:00:05.8]} 51... Kf7 {[%clk
0:00:02.1]} 52. Kh4 {[%clk 0:00:05]} 52... Kf6 {[%clk 0:00:01.5]} 53. Kxh5
{[%clk 0:00:04.6]} 1-0

[Event "*** SCC Grand Prix: Titled Tuesday Blitz"]
[Site "Chess.com"]
[Date "2020.08.25"]
[Round "2"]
[White "Kildepiotr"]
[Black "davigator"]
[Result "1-0"]
[WhiteElo "2628"]
[BlackElo "2309"]
[TimeControl "180+1"]
[EndTime "10:20:21 PDT"]
[Termination "Kildepiotr won by resignation"]

1. Nf3 {[%clk 0:03:00.9]} 1... d5 {[%clk 0:02:59.6]} 2. g3 {[%clk 0:03:00.8]}
2... Bg4 {[%clk 0:02:58.1]} 3. Bg2 {[%clk 0:03:01]} 3... Nd7 {[%clk 0:02:58]} 4.
O-O {[%clk 0:03:01.2]} 4... c6 {[%clk 0:02:58.1]} 5. d3 {[%clk 0:03:01.7]} 5...
e6 {[%clk 0:02:53.6]} 6. Nbd2 {[%clk 0:03:02.2]} 6... Be7 {[%clk 0:02:53.3]} 7.
e4 {[%clk 0:03:02.4]} 7... Ngf6 {[%clk 0:02:52.9]} 8. h3 {[%clk 0:03:02.1]} 8...
Bh5 {[%clk 0:02:52.4]} 9. Qe1 {[%clk 0:03:02.7]} 9... O-O {[%clk 0:02:51.6]} 10.
e5 {[%clk 0:02:56.7]} 10... Ne8 {[%clk 0:02:51.4]} 11. a4 {[%clk 0:02:55.8]}
11... a5 {[%clk 0:02:51]} 12. Nb3 {[%clk 0:02:54.1]} 12... Nc7 {[%clk
0:02:43.9]} 13. Bd2 {[%clk 0:02:45.7]} 13... b6 {[%clk 0:02:43.1]} 14. Nfd4
{[%clk 0:02:45.1]} 14... Nb8 {[%clk 0:02:41.3]} 15. f4 {[%clk 0:02:43.5]} 15...
f5 {[%clk 0:02:26.6]} 16. exf6 {[%clk 0:02:38.2]} 16... Bxf6 {[%clk 0:02:24.7]}
17. Nxe6 {[%clk 0:02:32.7]} 17... Nxe6 {[%clk 0:02:24.6]} 18. Qxe6+ {[%clk
0:02:32.7]} 18... Bf7 {[%clk 0:02:24.8]} 19. Qe2 {[%clk 0:02:26.9]} 19... Bxb2
{[%clk 0:02:24.4]} 20. Rae1 {[%clk 0:02:26.8]} 20... Bf6 {[%clk 0:02:23]} 21. g4
{[%clk 0:02:20.1]} 21... g6 {[%clk 0:02:19.9]} 22. g5 {[%clk 0:02:17.8]} 22...
Bg7 {[%clk 0:02:19.9]} 23. f5 {[%clk 0:02:17.8]} 23... gxf5 {[%clk 0:02:20.4]}
24. Rxf5 {[%clk 0:02:17.2]} 24... Nd7 {[%clk 0:02:13.5]} 25. Bf4 {[%clk
0:02:08.3]} 25... Re8 {[%clk 0:02:06.5]} 26. Qf2 {[%clk 0:01:47]} 26... Rxe1+
{[%clk 0:02:05.2]} 27. Qxe1 {[%clk 0:01:47.9]} 27... Nf8 {[%clk 0:02:05]} 28.
Bd2 {[%clk 0:01:38.2]} 28... Ra7 {[%clk 0:01:51.2]} 29. h4 {[%clk 0:01:34.3]}
29... Re7 {[%clk 0:01:48.6]} 30. Qf2 {[%clk 0:01:34]} 30... Bg6 {[%clk
0:01:46.5]} 31. Rf3 {[%clk 0:01:27.7]} 31... Bh5 {[%clk 0:01:42]} 32. Re3 {[%clk
0:01:25.9]} 32... Rf7 {[%clk 0:01:41.5]} 33. Qg3 {[%clk 0:01:22.6]} 33... c5
{[%clk 0:01:27.1]} 34. Re1 {[%clk 0:01:13]} 34... c4 {[%clk 0:01:19.4]} 35. Nc1
{[%clk 0:01:12.6]} 35... Bd4+ {[%clk 0:01:12]} 36. Be3 {[%clk 0:01:11.5]} 36...
Bc3 {[%clk 0:01:10.7]} 37. Rf1 {[%clk 0:01:09.4]} 37... Rxf1+ {[%clk 0:01:09.3]}
38. Bxf1 {[%clk 0:01:10.2]} 38... Ng6 {[%clk 0:01:03.6]} 39. dxc4 {[%clk
0:01:07.6]} 39... Be5 {[%clk 0:01:02]} 40. Qf2 {[%clk 0:01:03.5]} 40... d4
{[%clk 0:01:01.4]} 41. Bd2 {[%clk 0:01:03.6]} 41... Qd6 {[%clk 0:00:57.4]} 42.
Bg2 {[%clk 0:00:47.7]} 42... Bh2+ {[%clk 0:00:43.9]} 43. Kf1 {[%clk 0:00:47.3]}
43... Bg3 {[%clk 0:00:31.1]} 44. Bd5+ {[%clk 0:00:46.8]} 44... Qxd5 {[%clk
0:00:31.2]} 45. cxd5 {[%clk 0:00:47.1]} 45... Bxf2 {[%clk 0:00:31]} 46. Kxf2
{[%clk 0:00:48]} 46... Nxh4 {[%clk 0:00:30]} 47. Nb3 {[%clk 0:00:47.6]} 47...
Nf5 {[%clk 0:00:28]} 48. Bf4 {[%clk 0:00:45]} 48... Bf7 {[%clk 0:00:24.8]} 49.
d6 {[%clk 0:00:43.6]} 49... Kf8 {[%clk 0:00:24.6]} 50. Ke2 {[%clk 0:00:39.7]}
50... Bc4+ {[%clk 0:00:22.8]} 51. Kd2 {[%clk 0:00:39.9]} 51... Ke8 {[%clk
0:00:22.5]} 52. Nc1 {[%clk 0:00:35.5]} 52... Kd7 {[%clk 0:00:20.1]} 53. Nd3
{[%clk 0:00:35.2]} 53... Bxd3 {[%clk 0:00:17.7]} 54. Kxd3 {[%clk 0:00:35.4]}
54... Nxd6 {[%clk 0:00:18.6]} 55. Kxd4 {[%clk 0:00:35.6]} 55... Nf7 {[%clk
0:00:15.4]} 56. Kd5 {[%clk 0:00:35]} 56... Nd8 {[%clk 0:00:14]} 57. Be3 {[%clk
0:00:32.8]} 57... Kc7 {[%clk 0:00:13.5]} 58. c4 {[%clk 0:00:32]} 58... Nc6
{[%clk 0:00:10.6]} 59. Ke6 {[%clk 0:00:31]} 59... Nb4 {[%clk 0:00:06.2]} 60. Kf7
{[%clk 0:00:29.4]} 60... Nd3 {[%clk 0:00:06.3]} 61. Kg7 {[%clk 0:00:28.6]} 61...
Ne5 {[%clk 0:00:07]} 62. Kxh7 {[%clk 0:00:28.8]} 62... Nxc4 {[%clk 0:00:07.3]}
63. Bf4+ {[%clk 0:00:28.4]} 63... Kd7 {[%clk 0:00:05.1]} 64. g6 {[%clk
0:00:28.8]} 64... Nd6 {[%clk 0:00:02]} 65. Bxd6 {[%clk 0:00:28.2]} 65... Kxd6
{[%clk 0:00:02.6]} 66. g7 {[%clk 0:00:28.6]} 1-0

[Event "*** SCC Grand Prix: Titled Tuesday Blitz"]
[Site "Chess.com"]
[Date "2020.08.25"]
[Round "2"]
[White "karinachess1"]
[Black "dretch"]
[Result "0-1"]
[WhiteElo "2500"]
[BlackElo "2760"]
[TimeControl "180+1"]
[EndTime "10:20:22 PDT"]
[Termination "dretch won on time"]

1. c4 {[%clk 0:03:00]} 1... c6 {[%clk 0:02:58.6]} 2. Nf3 {[%clk 0:02:59.2]} 2...
d5 {[%clk 0:02:58.8]} 3. d4 {[%clk 0:02:53.9]} 3... Nf6 {[%clk 0:02:58.4]} 4. g3
{[%clk 0:02:53.8]} 4... dxc4 {[%clk 0:02:56.5]} 5. Bg2 {[%clk 0:02:49.2]} 5...
Nbd7 {[%clk 0:02:55.6]} 6. a4 {[%clk 0:02:35.7]} 6... a5 {[%clk 0:02:54.5]} 7.
Na3 {[%clk 0:02:29.3]} 7... Nb6 {[%clk 0:02:51.3]} 8. O-O {[%clk 0:02:20.4]}
8... g6 {[%clk 0:02:51]} 9. Ne5 {[%clk 0:02:15.6]} 9... Be6 {[%clk 0:02:50.7]}
10. Be3 {[%clk 0:01:55.1]} 10... Bg7 {[%clk 0:02:50.3]} 11. Rc1 {[%clk
0:01:53.6]} 11... O-O {[%clk 0:02:42.9]} 12. h3 {[%clk 0:01:53.4]} 12... Nfd5
{[%clk 0:02:35.8]} 13. Bd2 {[%clk 0:01:49.2]} 13... Nb4 {[%clk 0:02:26.8]} 14.
Nf3 {[%clk 0:01:31.5]} 14... Bd5 {[%clk 0:02:16.4]} 15. Bc3 {[%clk 0:01:30.3]}
15... Qc7 {[%clk 0:01:51.6]} 16. Nc2 {[%clk 0:01:12.7]} 16... c5 {[%clk
0:01:36.5]} 17. dxc5 {[%clk 0:01:05]} 17... Qxc5 {[%clk 0:01:36.6]} 18. Ne3
{[%clk 0:00:46.2]} 18... Rfd8 {[%clk 0:01:26.9]} 19. Qe1 {[%clk 0:00:20.9]}
19... Bxc3 {[%clk 0:01:02.3]} 20. bxc3 {[%clk 0:00:14.9]} 20... Nc6 {[%clk
0:01:01.4]} 21. Rd1 {[%clk 0:00:13.4]} 21... Bxf3 {[%clk 0:00:57.9]} 22. Bxf3
{[%clk 0:00:13.4]} 22... Nxa4 {[%clk 0:00:58.3]} 23. Rxd8+ {[%clk 0:00:09.6]}
23... Rxd8 {[%clk 0:00:57.3]} 24. Qa1 {[%clk 0:00:09.6]} 24... b5 {[%clk
0:00:51.6]} 25. Kg2 {[%clk 0:00:08.2]} 25... Ne5 {[%clk 0:00:50.3]} 26. Be4
{[%clk 0:00:08]} 26... f5 {[%clk 0:00:49.6]} 27. Bc2 {[%clk 0:00:08.1]} 27...
Qc6+ {[%clk 0:00:47.5]} 28. Kg1 {[%clk 0:00:06]} 28... Rd2 {[%clk 0:00:39.9]}
29. Re1 {[%clk 0:00:06.2]} 29... Kf7 {[%clk 0:00:18]} 30. Qc1 {[%clk 0:00:06.1]}
30... Rd8 {[%clk 0:00:15.2]} 31. Qa3 {[%clk 0:00:05.3]} 31... Qd6 {[%clk
0:00:13.3]} 32. Qa1 {[%clk 0:00:03.9]} 32... Qc6 {[%clk 0:00:13.3]} 33. Qa3
{[%clk 0:00:03.8]} 33... Qc5 {[%clk 0:00:13.6]} 34. Qa1 {[%clk 0:00:04.1]} 34...
Nb6 {[%clk 0:00:13.7]} 35. Qxa5 {[%clk 0:00:03.9]} 35... Ra8 {[%clk 0:00:13.9]}
36. Qb4 {[%clk 0:00:04.1]} 36... Qxb4 {[%clk 0:00:14.3]} 37. cxb4 {[%clk
0:00:05]} 37... Nc8 {[%clk 0:00:14.1]} 38. g4 {[%clk 0:00:04.7]} 38... fxg4
{[%clk 0:00:13.3]} 39. hxg4 {[%clk 0:00:05.6]} 39... Nd6 {[%clk 0:00:12.7]} 40.
f4 {[%clk 0:00:04.9]} 40... Nc6 {[%clk 0:00:13.2]} 41. Nd5 {[%clk 0:00:04.4]}
41... Ra2 {[%clk 0:00:13.1]} 42. Bb1 {[%clk 0:00:04.3]} 42... Rb2 {[%clk
0:00:13.3]} 43. e4 {[%clk 0:00:04.1]} 43... Nxb4 {[%clk 0:00:12.4]} 44. Nxb4
{[%clk 0:00:03.7]} 44... Rxb4 {[%clk 0:00:13.3]} 45. e5 {[%clk 0:00:04.6]} 45...
Ne8 {[%clk 0:00:13.2]} 46. Be4 {[%clk 0:00:05.1]} 46... c3 {[%clk 0:00:12.5]}
47. Bd5+ {[%clk 0:00:05.1]} 47... e6 {[%clk 0:00:13]} 48. Be4 {[%clk 0:00:04.7]}
48... Rc4 {[%clk 0:00:12.5]} 49. f5 {[%clk 0:00:04.3]} 49... gxf5 {[%clk
0:00:12]} 50. gxf5 {[%clk 0:00:05.2]} 50... exf5 {[%clk 0:00:12.4]} 51. Bxf5
{[%clk 0:00:04.9]} 51... h6 {[%clk 0:00:11.6]} 52. e6+ {[%clk 0:00:04.4]} 52...
Ke7 {[%clk 0:00:11.7]} 53. Bc2 {[%clk 0:00:05]} 53... b4 {[%clk 0:00:11.7]} 54.
Bb3 {[%clk 0:00:05.2]} 54... Rc5 {[%clk 0:00:11.6]} 55. Rf1 {[%clk 0:00:05.5]}
55... Nf6 {[%clk 0:00:10.9]} 56. Ra1 {[%clk 0:00:05.6]} 56... Rc7 {[%clk
0:00:10.4]} 57. Rc1 {[%clk 0:00:04]} 57... Ne4 {[%clk 0:00:10.3]} 58. Kg2 {[%clk
0:00:03.9]} 58... Nd2 {[%clk 0:00:10.7]} 59. Bd5 {[%clk 0:00:04.1]} 59... b3
{[%clk 0:00:11.1]} 60. Rh1 {[%clk 0:00:03.8]} 60... b2 {[%clk 0:00:10.7]} 61.
Ba2 {[%clk 0:00:01.1]} 61... c2 {[%clk 0:00:10.9]} 0-1

[Event "*** SCC Grand Prix: Titled Tuesday Blitz"]
[Site "Chess.com"]
[Date "2020.08.25"]
[Round "2"]
[White "Tactictic"]
[Black "Mikhail_Golubev"]
[Result "1-0"]
[WhiteElo "2370"]
[BlackElo "2630"]
[TimeControl "180+1"]
[EndTime "10:20:22 PDT"]
[Termination "Tactictic won on time"]

1. e4 {[%clk 0:03:00.9]} 1... c5 {[%clk 0:02:59.5]} 2. Nf3 {[%clk 0:03:01]} 2...
d6 {[%clk 0:03:00]} 3. d4 {[%clk 0:03:01.7]} 3... Nf6 {[%clk 0:03:00.1]} 4. Nc3
{[%clk 0:03:01]} 4... cxd4 {[%clk 0:03:00.4]} 5. Nxd4 {[%clk 0:03:01.9]} 5... g6
{[%clk 0:03:00.7]} 6. Be3 {[%clk 0:03:00.6]} 6... Bg7 {[%clk 0:03:00.8]} 7. f3
{[%clk 0:03:00.3]} 7... O-O {[%clk 0:03:01.3]} 8. Qd2 {[%clk 0:03:01]} 8... Nc6
{[%clk 0:03:01.6]} 9. O-O-O {[%clk 0:03:01]} 9... d5 {[%clk 0:03:00.3]} 10. Kb1
{[%clk 0:03:00.7]} 10... Nxd4 {[%clk 0:02:51.8]} 11. e5 {[%clk 0:03:00.3]} 11...
Nf5 {[%clk 0:02:49.8]} 12. exf6 {[%clk 0:02:59.6]} 12... exf6 {[%clk 0:02:49.5]}
13. Nxd5 {[%clk 0:02:53.3]} 13... Nxe3 {[%clk 0:02:45.7]} 14. Qxe3 {[%clk
0:02:46.8]} 14... Be6 {[%clk 0:02:44.9]} 15. Bc4 {[%clk 0:02:34.5]} 15... f5
{[%clk 0:02:38.5]} 16. c3 {[%clk 0:01:38.2]} 16... Re8 {[%clk 0:02:37.9]} 17.
Nf4 {[%clk 0:01:13.6]} 17... Qg5 {[%clk 0:01:13.3]} 18. h4 {[%clk 0:01:10.3]}
18... Qh6 {[%clk 0:00:52.6]} 19. Bxe6 {[%clk 0:01:00.9]} 19... Rxe6 {[%clk
0:00:52.5]} 20. Qd2 {[%clk 0:01:01]} 20... Ree8 {[%clk 0:00:51]} 21. g4 {[%clk
0:00:53.5]} 21... Be5 {[%clk 0:00:41.4]} 22. g5 {[%clk 0:00:44.1]} 22... Qg7
{[%clk 0:00:39.8]} 23. h5 {[%clk 0:00:40.7]} 23... Bxf4 {[%clk 0:00:35.7]} 24.
Qxf4 {[%clk 0:00:41.6]} 24... Qe5 {[%clk 0:00:35.2]} 25. Qh4 {[%clk 0:00:33]}
25... Rac8 {[%clk 0:00:25.9]} 26. hxg6 {[%clk 0:00:25]} 26... hxg6 {[%clk
0:00:25.2]} 27. Qh7+ {[%clk 0:00:07.9]} 27... Kf8 {[%clk 0:00:24.6]} 28. Rd7
{[%clk 0:00:07.2]} 28... Qg7 {[%clk 0:00:16.7]} 29. Qh2 {[%clk 0:00:07.2]} 29...
b5 {[%clk 0:00:13.3]} 30. Qd6+ {[%clk 0:00:06.9]} 30... Kg8 {[%clk 0:00:13.3]}
31. Qd5 {[%clk 0:00:05.8]} 31... b4 {[%clk 0:00:12.2]} 32. Rxf7 {[%clk
0:00:04.8]} 32... Qxf7 {[%clk 0:00:09.7]} 33. Rh8+ {[%clk 0:00:05.1]} 33... Kxh8
{[%clk 0:00:09.2]} 34. Qxf7 {[%clk 0:00:05]} 34... bxc3 {[%clk 0:00:09.3]} 35.
bxc3 {[%clk 0:00:03.6]} 35... Rb8+ {[%clk 0:00:08.4]} 36. Kc2 {[%clk 0:00:03.5]}
36... Re2+ {[%clk 0:00:08.2]} 37. Kd3 {[%clk 0:00:04]} 37... Rbe8 {[%clk
0:00:08.5]} 38. Qxg6 {[%clk 0:00:04.1]} 38... R2e3+ {[%clk 0:00:07.1]} 39. Kc4
{[%clk 0:00:04.5]} 39... f4 {[%clk 0:00:07.2]} 40. Qh6+ {[%clk 0:00:03.8]} 40...
Kg8 {[%clk 0:00:07.3]} 41. g6 {[%clk 0:00:04.3]} 41... R3e7 {[%clk 0:00:06.8]}
42. Qxf4 {[%clk 0:00:04.5]} 42... Rc8+ {[%clk 0:00:06.6]} 43. Kb3 {[%clk
0:00:04.5]} 43... Rb7+ {[%clk 0:00:06.5]} 44. Kc2 {[%clk 0:00:04]} 44... Rbc7
{[%clk 0:00:06.8]} 45. Qd4 {[%clk 0:00:03.7]} 45... Rc6 {[%clk 0:00:05.7]} 46.
Qd5+ {[%clk 0:00:03.9]} 46... Kh8 {[%clk 0:00:04.4]} 47. f4 {[%clk 0:00:03.1]}
47... Rxc3+ {[%clk 0:00:03.6]} 48. Kd2 {[%clk 0:00:01.8]} 48... R3c7 {[%clk
0:00:03.5]} 49. Qe5+ {[%clk 0:00:01.8]} 49... Kg8 {[%clk 0:00:03.1]} 50. Qe6+
{[%clk 0:00:01.8]} 50... Kg7 {[%clk 0:00:02.2]} 51. f5 {[%clk 0:00:02.7]} 51...
Rc6 {[%clk 0:00:01.9]} 52. Qe5+ {[%clk 0:00:02.7]} 52... Kh6 {[%clk 0:00:01.6]}
53. Qf4+ {[%clk 0:00:02.6]} 53... Kg7 {[%clk 0:00:01.3]} 54. Qh4 {[%clk
0:00:02.8]} 1-0

[Event "*** SCC Grand Prix: Titled Tuesday Blitz"]
[Site "Chess.com"]
[Date "2020.08.25"]
[Round "2"]
[White "arminmusovic"]
[Black "penguingm1"]
[Result "0-1"]
[WhiteElo "2584"]
[BlackElo "2990"]
[TimeControl "180+1"]
[EndTime "10:20:24 PDT"]
[Termination "penguingm1 won by resignation"]

1. a3 {[%clk 0:02:59.7]} 1... d5 {[%clk 0:02:54.6]} 2. Nc3 {[%clk 0:03:00.6]}
2... Bf5 {[%clk 0:02:50.6]} 3. d3 {[%clk 0:03:00.8]} 3... Nf6 {[%clk 0:02:50.7]}
4. Bg5 {[%clk 0:03:00.7]} 4... d4 {[%clk 0:02:24.5]} 5. Nb1 {[%clk 0:02:41.7]}
5... e5 {[%clk 0:02:13.6]} 6. Nf3 {[%clk 0:02:27.8]} 6... h6 {[%clk 0:01:48.8]}
7. Bh4 {[%clk 0:02:23.3]} 7... Nc6 {[%clk 0:01:39.7]} 8. h3 {[%clk 0:02:04.3]}
8... g5 {[%clk 0:01:14.5]} 9. Bg3 {[%clk 0:02:04.2]} 9... Qe7 {[%clk 0:01:13.5]}
10. Nbd2 {[%clk 0:01:53.8]} 10... Bg7 {[%clk 0:01:10.2]} 11. Bh2 {[%clk
0:01:48.2]} 11... O-O-O {[%clk 0:00:36.6]} 12. g4 {[%clk 0:01:44.8]} 12... Bg6
{[%clk 0:00:36.9]} 13. Bg2 {[%clk 0:01:43.9]} 13... h5 {[%clk 0:00:35.9]} 14.
gxh5 {[%clk 0:01:26.2]} 14... Rxh5 {[%clk 0:00:27.2]} 15. Nf1 {[%clk 0:01:15.3]}
15... e4 {[%clk 0:00:21.4]} 16. dxe4 {[%clk 0:01:10.5]} 16... Nxe4 {[%clk
0:00:21.6]} 17. Ng3 {[%clk 0:01:08.8]} 17... Nxg3 {[%clk 0:00:16.3]} 18. Bxg3
{[%clk 0:01:08.6]} 18... f5 {[%clk 0:00:16.9]} 19. Qd3 {[%clk 0:00:25.7]} 19...
Qe6 {[%clk 0:00:13.7]} 20. Qb3 {[%clk 0:00:22.8]} 20... Qxb3 {[%clk 0:00:13.6]}
21. cxb3 {[%clk 0:00:23.7]} 21... f4 {[%clk 0:00:14.2]} 22. Bh2 {[%clk
0:00:24.2]} 22... d3 {[%clk 0:00:14.8]} 23. O-O-O {[%clk 0:00:22.6]} 23... dxe2
{[%clk 0:00:12.2]} 24. Rxd8+ {[%clk 0:00:23.5]} 24... Kxd8 {[%clk 0:00:10.9]}
25. Ne1 {[%clk 0:00:24.4]} 25... Nd4 {[%clk 0:00:10.8]} 26. Kd2 {[%clk
0:00:20.7]} 26... Nxb3+ {[%clk 0:00:07.5]} 27. Kxe2 {[%clk 0:00:21]} 27... Bxb2
{[%clk 0:00:07.9]} 28. Bf3 {[%clk 0:00:20.5]} 28... Nd4+ {[%clk 0:00:07.4]} 29.
Kd2 {[%clk 0:00:20]} 29... Nxf3+ {[%clk 0:00:07.4]} 30. Nxf3 {[%clk 0:00:20.9]}
30... Be4 {[%clk 0:00:08]} 31. Ke2 {[%clk 0:00:17]} 31... Rxh3 {[%clk
0:00:04.8]} 32. Rd1+ {[%clk 0:00:16.4]} 32... Kc8 {[%clk 0:00:03.7]} 33. Nxg5
{[%clk 0:00:16.9]} 33... Rxh2 {[%clk 0:00:03.8]} 34. Nxe4 {[%clk 0:00:16.1]}
34... Bxa3 {[%clk 0:00:04.3]} 35. Ng5 {[%clk 0:00:14.2]} 35... b6 {[%clk
0:00:03.3]} 36. Rd3 {[%clk 0:00:13.3]} 36... Bc5 {[%clk 0:00:03.7]} 37. Ne4
{[%clk 0:00:12.6]} 37... Be7 {[%clk 0:00:04]} 38. Rf3 {[%clk 0:00:12.2]} 38...
Rh4 {[%clk 0:00:04.5]} 39. Nd2 {[%clk 0:00:11.8]} 39... a5 {[%clk 0:00:04.7]}
40. Nc4 {[%clk 0:00:11.9]} 40... a4 {[%clk 0:00:05]} 41. Ne5 {[%clk 0:00:11.3]}
41... Bd6 {[%clk 0:00:05.2]} 42. Nc4 {[%clk 0:00:10.4]} 42... b5 {[%clk
0:00:04.8]} 43. Nd2 {[%clk 0:00:08]} 43... a3 {[%clk 0:00:05.3]} 44. Nb3 {[%clk
0:00:06.2]} 44... c5 {[%clk 0:00:05]} 45. Rc3 {[%clk 0:00:06.4]} 45... c4 {[%clk
0:00:04.5]} 46. Nc1 {[%clk 0:00:05.1]} 46... Kd7 {[%clk 0:00:04.3]} 47. Rc2
{[%clk 0:00:04.8]} 47... Kc6 {[%clk 0:00:04.6]} 48. Kf3 {[%clk 0:00:05]} 48...
Kd5 {[%clk 0:00:05.1]} 49. Rd2+ {[%clk 0:00:05]} 49... Kc6 {[%clk 0:00:05.6]}
50. Ne2 {[%clk 0:00:05.9]} 50... Rh3+ {[%clk 0:00:05.5]} 51. Ke4 {[%clk
0:00:05.9]} 51... b4 {[%clk 0:00:05.3]} 52. Nd4+ {[%clk 0:00:06.1]} 52... Kb6
{[%clk 0:00:05.5]} 53. Nf5 {[%clk 0:00:06.9]} 53... Bc5 {[%clk 0:00:05.8]} 54.
Rd8 {[%clk 0:00:07.4]} 54... a2 {[%clk 0:00:06]} 55. Rb8+ {[%clk 0:00:07.7]}
55... Ka7 {[%clk 0:00:06.3]} 56. Rc8 {[%clk 0:00:07.3]} 56... a1=Q {[%clk
0:00:06.7]} 57. Rxc5 {[%clk 0:00:07.1]} 57... Qb1+ {[%clk 0:00:07.2]} 58. Ke5
{[%clk 0:00:06.6]} 58... Qd3 {[%clk 0:00:07.6]} 59. Rc7+ {[%clk 0:00:06.4]}
59... Kb6 {[%clk 0:00:07.7]} 60. Rf7 {[%clk 0:00:07]} 60... Rh5 {[%clk
0:00:07.3]} 61. Ke6 {[%clk 0:00:06.8]} 61... Rxf5 {[%clk 0:00:07.4]} 62. Rxf5
{[%clk 0:00:07.7]} 62... Qxf5+ {[%clk 0:00:07.9]} 63. Kxf5 {[%clk 0:00:08.6]}
63... c3 {[%clk 0:00:08.7]} 64. Kxf4 {[%clk 0:00:09.5]} 64... c2 {[%clk
0:00:09.5]} 65. Ke5 {[%clk 0:00:10.4]} 65... c1=Q {[%clk 0:00:10.4]} 66. f4
{[%clk 0:00:11.3]} 66... b3 {[%clk 0:00:11.1]} 67. f5 {[%clk 0:00:12.2]} 67...
b2 {[%clk 0:00:12]} 0-1